{"text_format":"1","workbook":"xlsx","n_sheets":2,"sheets":["工资输入","stubs_template"],"not_rendered":{"charts":0,"images":0,"macros":1,"external_links":0,"defined_names":7,"comments":0,"pivot_tables":0},"unopened":[],"bounds":{"document_bytes":16777216,"sheet_cells":100000,"rows_first":2000,"rows_last":500,"rows_between":2000,"halvings":0,"cell_chars":16384,"cell_head_chars":4096},"cells_cut":0,"cells_raw":0,"read":"whole","date_system":"1900"}

{"sheet":"工资输入","index":0,"n_rows":13,"n_cols":24,"rows_kept":13,"cut":false,"hidden":false,"merged":[]}
[null,"工资计算器",null,null,null,null,null,null,null,null,"期间结束：",43077,null,"公司名称：","嘉元实业"]
[]
[null,"ID","员工姓名","工作的正常时数","假期小时数","病假小时数","加班小时数","加班费率","工资总额","税款和扣款","其他扣款","净薪金"," ","计时工资","纳税状态","联邦允许","州税","联邦所得税","社会保障税","医疗保险税","总扣缴税额","保险扣款","其他常规扣款","总常规扣款"]
[null,1001,"林国治",50,5,1,null,null,{"$f":"SUM(Employees[[#This Row],[工作的正常时数]:[病假小时数]])*Employees[[#This Row],[计时工资]]+Employees[[#This Row],[加班小时数]]*Employees[[#This Row],[加班费率]]","v":5600},{"$f":"Employees[[#This Row],[工资总额]]*Employees[[#This Row],[总扣缴税额]] + Employees[[#This Row],[总常规扣款]]","v":2730.8},200,{"$f":"Employees[[#This Row],[工资总额]]-Employees[[#This Row],[税款和扣款]]-Employees[[#This Row],[其他扣款]]","v":2669.2},null,100,1,4,2.3E-2,0.28000000000000003,6.3E-2,1.4500000000000001E-2,{"$f":"SUM(Employees[[#This Row],[州税]:[医疗保险税]])","v":0.38050000000000006},200,400,{"$f":"SUM(Employees[[#This Row],[保险扣款]:[其他常规扣款]])","v":600}]
[null,1002,"赵军",40,null,null,null,null,{"$f":"SUM(Employees[[#This Row],[工作的正常时数]:[病假小时数]])*Employees[[#This Row],[计时工资]]+Employees[[#This Row],[加班小时数]]*Employees[[#This Row],[加班费率]]","v":3200},{"$f":"Employees[[#This Row],[工资总额]]*Employees[[#This Row],[总扣缴税额]] + Employees[[#This Row],[总常规扣款]]","v":1317.6000000000001},null,{"$f":"Employees[[#This Row],[工资总额]]-Employees[[#This Row],[税款和扣款]]-Employees[[#This Row],[其他扣款]]","v":1882.3999999999999},null,80,1,1,2.3E-2,0.28000000000000003,6.3E-2,1.4500000000000001E-2,{"$f":"SUM(Employees[[#This Row],[州税]:[医疗保险税]])","v":0.38050000000000006},0,100,{"$f":"SUM(Employees[[#This Row],[保险扣款]:[其他常规扣款]])","v":100}]
[null,1003,"史美萍",35,3,null,null,null,{"$f":"SUM(Employees[[#This Row],[工作的正常时数]:[病假小时数]])*Employees[[#This Row],[计时工资]]+Employees[[#This Row],[加班小时数]]*Employees[[#This Row],[加班费率]]","v":5320},{"$f":"Employees[[#This Row],[工资总额]]*Employees[[#This Row],[总扣缴税额]] + Employees[[#This Row],[总常规扣款]]","v":2404.2600000000002},null,{"$f":"Employees[[#This Row],[工资总额]]-Employees[[#This Row],[税款和扣款]]-Employees[[#This Row],[其他扣款]]","v":2915.74},null,140,1,3,2.3E-2,0.28000000000000003,6.3E-2,1.4500000000000001E-2,{"$f":"SUM(Employees[[#This Row],[州税]:[医疗保险税]])","v":0.38050000000000006},180,200,{"$f":"SUM(Employees[[#This Row],[保险扣款]:[其他常规扣款]])","v":380}]
[null,1008,"沙保国",50,5,1,null,null,{"$f":"SUM(Employees[[#This Row],[工作的正常时数]:[病假小时数]])*Employees[[#This Row],[计时工资]]+Employees[[#This Row],[加班小时数]]*Employees[[#This Row],[加班费率]]","v":11200},{"$f":"Employees[[#This Row],[工资总额]]*Employees[[#This Row],[总扣缴税额]] + Employees[[#This Row],[总常规扣款]]","v":4411.6000000000004},null,{"$f":"Employees[[#This Row],[工资总额]]-Employees[[#This Row],[税款和扣款]]-Employees[[#This Row],[其他扣款]]","v":6788.4},null,200,1,0,2.3E-2,0.28000000000000003,6.3E-2,1.4500000000000001E-2,{"$f":"SUM(Employees[[#This Row],[州税]:[医疗保险税]])","v":0.38050000000000006},150,null,{"$f":"SUM(Employees[[#This Row],[保险扣款]:[其他常规扣款]])","v":150}]
[null,1011,"林新宇",40,null,null,2,150,{"$f":"SUM(Employees[[#This Row],[工作的正常时数]:[病假小时数]])*Employees[[#This Row],[计时工资]]+Employees[[#This Row],[加班小时数]]*Employees[[#This Row],[加班费率]]","v":4300},{"$f":"Employees[[#This Row],[工资总额]]*Employees[[#This Row],[总扣缴税额]] + Employees[[#This Row],[总常规扣款]]","v":2236.1500000000005},null,{"$f":"Employees[[#This Row],[工资总额]]-Employees[[#This Row],[税款和扣款]]-Employees[[#This Row],[其他扣款]]","v":2063.8499999999995},null,100,1,0,2.3E-2,0.28000000000000003,6.3E-2,1.4500000000000001E-2,{"$f":"SUM(Employees[[#This Row],[州税]:[医疗保险税]])","v":0.38050000000000006},200,400,{"$f":"SUM(Employees[[#This Row],[保险扣款]:[其他常规扣款]])","v":600}]
[null,1012,"韩建明",40,5,1,null,null,{"$f":"SUM(Employees[[#This Row],[工作的正常时数]:[病假小时数]])*Employees[[#This Row],[计时工资]]+Employees[[#This Row],[加班小时数]]*Employees[[#This Row],[加班费率]]","v":5520},{"$f":"Employees[[#This Row],[工资总额]]*Employees[[#This Row],[总扣缴税额]] + Employees[[#This Row],[总常规扣款]]","v":2700.36},null,{"$f":"Employees[[#This Row],[工资总额]]-Employees[[#This Row],[税款和扣款]]-Employees[[#This Row],[其他扣款]]","v":2819.64},null,120,1,4,2.3E-2,0.28000000000000003,6.3E-2,1.4500000000000001E-2,{"$f":"SUM(Employees[[#This Row],[州税]:[医疗保险税]])","v":0.38050000000000006},200,400,{"$f":"SUM(Employees[[#This Row],[保险扣款]:[其他常规扣款]])","v":600}]
[null,1025,"徐艳君",36,null,2,1,180,{"$f":"SUM(Employees[[#This Row],[工作的正常时数]:[病假小时数]])*Employees[[#This Row],[计时工资]]+Employees[[#This Row],[加班小时数]]*Employees[[#This Row],[加班费率]]","v":4740},{"$f":"Employees[[#This Row],[工资总额]]*Employees[[#This Row],[总扣缴税额]] + Employees[[#This Row],[总常规扣款]]","v":2253.5700000000006},250,{"$f":"Employees[[#This Row],[工资总额]]-Employees[[#This Row],[税款和扣款]]-Employees[[#This Row],[其他扣款]]","v":2236.4299999999994},null,120,1,2,2.3E-2,0.28000000000000003,6.3E-2,1.4500000000000001E-2,{"$f":"SUM(Employees[[#This Row],[州税]:[医疗保险税]])","v":0.38050000000000006},250,200,{"$f":"SUM(Employees[[#This Row],[保险扣款]:[其他常规扣款]])","v":450}]
[null,1032,"洪国明",40,5,1,null,null,{"$f":"SUM(Employees[[#This Row],[工作的正常时数]:[病假小时数]])*Employees[[#This Row],[计时工资]]+Employees[[#This Row],[加班小时数]]*Employees[[#This Row],[加班费率]]","v":4600},{"$f":"Employees[[#This Row],[工资总额]]*Employees[[#This Row],[总扣缴税额]] + Employees[[#This Row],[总常规扣款]]","v":1750.3000000000002},500,{"$f":"Employees[[#This Row],[工资总额]]-Employees[[#This Row],[税款和扣款]]-Employees[[#This Row],[其他扣款]]","v":2349.6999999999998},null,100,1,3,2.3E-2,0.28000000000000003,6.3E-2,1.4500000000000001E-2,{"$f":"SUM(Employees[[#This Row],[州税]:[医疗保险税]])","v":0.38050000000000006},null,null,{"$f":"SUM(Employees[[#This Row],[保险扣款]:[其他常规扣款]])","v":0}]
[null,1049,"刘英玫",40,1,null,null,null,{"$f":"SUM(Employees[[#This Row],[工作的正常时数]:[病假小时数]])*Employees[[#This Row],[计时工资]]+Employees[[#This Row],[加班小时数]]*Employees[[#This Row],[加班费率]]","v":6150},{"$f":"Employees[[#This Row],[工资总额]]*Employees[[#This Row],[总扣缴税额]] + Employees[[#This Row],[总常规扣款]]","v":2590.0750000000003},230,{"$f":"Employees[[#This Row],[工资总额]]-Employees[[#This Row],[税款和扣款]]-Employees[[#This Row],[其他扣款]]","v":3329.9249999999997},null,150,1,2,2.3E-2,0.28000000000000003,6.3E-2,1.4500000000000001E-2,{"$f":"SUM(Employees[[#This Row],[州税]:[医疗保险税]])","v":0.38050000000000006},250,null,{"$f":"SUM(Employees[[#This Row],[保险扣款]:[其他常规扣款]])","v":250}]
[null,"总计",{"$f":"SUBTOTAL(103,Employees[员工姓名])","v":9},{"$f":"SUBTOTAL(109,Employees[工作的正常时数])","v":371},{"$f":"SUBTOTAL(109,Employees[假期小时数])","v":24},{"$f":"SUBTOTAL(109,Employees[病假小时数])","v":6},{"$f":"SUBTOTAL(109,Employees[加班小时数])","v":3},null,{"$f":"SUBTOTAL(109,Employees[工资总额])","v":50630},{"$f":"SUBTOTAL(109,Employees[税款和扣款])","v":22394.715000000004},{"$f":"SUBTOTAL(109,Employees[其他扣款])","v":1180},{"$f":"SUBTOTAL(109,Employees[净薪金])","v":27055.284999999996},null,null,null,null,null,null,null,null,null,{"$f":"SUBTOTAL(109,Employees[保险扣款])","v":1430},{"$f":"SUBTOTAL(109,Employees[其他常规扣款])","v":1700},{"$f":"SUBTOTAL(109,Employees[总常规扣款])","v":3130}]

{"sheet":"stubs_template","index":1,"n_rows":47,"n_cols":13,"rows_kept":47,"cut":false,"hidden":true,"merged":[[45,2,45,3],[32,2,32,3],[33,2,33,3],[20,2,20,3],[21,2,21,3],[2,3,2,4],[14,3,14,4],[26,3,26,4],[38,3,38,4],[44,2,44,3],[8,2,8,3],[9,2,9,3],[2,7,2,8],[14,7,14,8],[26,7,26,8],[38,7,38,8],[38,11,38,12],[26,11,26,12],[14,11,14,12],[2,11,2,12]]}
[]
[null,null,{"$f":"CompanyName","v":"嘉元实业"}]
[null,null,"期间",{"$f":"PeriodEnding","v":43077},null,null,"名称",{"$f":"IFERROR(INDEX(Employees[员工姓名],Stub),\"\")","v":"林国治"},null,null,"员工 ID",{"$f":"IFERROR(INDEX(Employees[ID],Stub),\"\")","v":1001}]
[null,null,"纳税状态",null,{"$f":"IFERROR(INDEX(Employees[纳税状态],Stub),\"\")","v":1},null,"联邦津贴（来自 W-4）",null,{"$f":"IFERROR(INDEX(Employees[联邦允许],Stub),\"\")","v":4},null,"工作时数",null,{"$f":"IFERROR(INDEX(Employees[工作的正常时数],Stub),\"\")","v":50}]
[null,null,"小时费率",null,{"$f":"IFERROR(INDEX(Employees[计时工资],Stub),\"\")","v":100},null,"加班费率",null,{"$f":"IFERROR(INDEX(Employees[加班费率],Stub),\"\")","v":0},null,"病假小时数",null,{"$f":"IFERROR(INDEX(Employees[病假小时数],Stub),\"\")","v":1}]
[null,null,"社会保障税",null,{"$f":"IFERROR(INDEX(Employees[社会保障税],Stub)  *  INDEX(Employees[工资总额],Stub),\"\")","v":352.8},null,"联邦所得税 ",null,{"$f":"IFERROR(INDEX(Employees[联邦所得税],Stub)  *  INDEX(Employees[工资总额],Stub),\"\")","v":1568.0000000000002},null,"假期小时数",null,{"$f":"IFERROR(INDEX(Employees[假期小时数],Stub),\"\")","v":5}]
[null,null,"医疗保险税 ",null,{"$f":"IFERROR(INDEX(Employees[医疗保险税],Stub)  *  INDEX(Employees[工资总额],Stub),\"\")","v":81.2},null,"州税 ",null,{"$f":"IFERROR(INDEX(Employees[州税],Stub)  *  INDEX(Employees[工资总额],Stub),\"\")","v":128.80000000000001},null,"加班小时数",null,{"$f":"IFERROR(INDEX(Employees[加班小时数],Stub),\"\")","v":0}]
[null,null,"保险扣款",null,{"$f":"IFERROR(INDEX(Employees[保险扣款],Stub),\"\")","v":200},null,"其他常规扣款",null,{"$f":"IFERROR(INDEX(Employees[其他常规扣款],Stub),\"\")","v":400},null,"工资总额",null,{"$f":"IFERROR(INDEX(Employees[工资总额],Stub),\"\")","v":5600}]
[null,null,"总税款和",null,{"$f":"IFERROR(INDEX(Employees[税款和扣款],Stub),\"\")","v":2730.8},null,"其他扣款",null,{"$f":"IFERROR(INDEX(Employees[其他扣款],Stub),\"\")","v":200},null,"总税款和扣款 ",null,{"$f":"IFERROR(INDEX(Employees[税款和扣款],Stub)  +  INDEX(Employees[其他扣款],Stub),\"\")","v":2930.8}]
[null,null,"常规扣款 "]
[null,null,null,null,null,null,null,null,null,null,"净薪金",null,{"$f":"IFERROR(INDEX(Employees[净薪金],Stub),\"\")","v":2669.2}]
[]
[]
[null,null,{"$f":"CompanyName","v":"嘉元实业"}]
[null,null,"期间",{"$f":"PeriodEnding","v":43077},null,null,"名称",{"$f":"IFERROR(INDEX(Employees[员工姓名],Stub),\"\")","v":"赵军"},null,null,"员工 ID",{"$f":"IFERROR(INDEX(Employees[ID],Stub),\"\")","v":1002}]
[null,null,"纳税状态",null,{"$f":"IFERROR(INDEX(Employees[纳税状态],Stub),\"\")","v":1},null,"联邦津贴（来自 W-4）",null,{"$f":"IFERROR(INDEX(Employees[联邦允许],Stub),\"\")","v":1},null,"工作时数",null,{"$f":"IFERROR(INDEX(Employees[工作的正常时数],Stub),\"\")","v":40}]
[null,null,"小时费率",null,{"$f":"IFERROR(INDEX(Employees[计时工资],Stub),\"\")","v":80},null,"加班费率",null,{"$f":"IFERROR(INDEX(Employees[加班费率],Stub),\"\")","v":0},null,"病假小时数",null,{"$f":"IFERROR(INDEX(Employees[病假小时数],Stub),\"\")","v":0}]
[null,null,"社会保障税",null,{"$f":"IFERROR(INDEX(Employees[社会保障税],Stub)  *  INDEX(Employees[工资总额],Stub),\"\")","v":201.6},null,"联邦所得税 ",null,{"$f":"IFERROR(INDEX(Employees[联邦所得税],Stub)  *  INDEX(Employees[工资总额],Stub),\"\")","v":896.00000000000011},null,"假期小时数",null,{"$f":"IFERROR(INDEX(Employees[假期小时数],Stub),\"\")","v":0}]
[null,null,"医疗保险税 ",null,{"$f":"IFERROR(INDEX(Employees[医疗保险税],Stub)  *  INDEX(Employees[工资总额],Stub),\"\")","v":46.400000000000006},null,"州税 ",null,{"$f":"IFERROR(INDEX(Employees[州税],Stub)  *  INDEX(Employees[工资总额],Stub),\"\")","v":73.599999999999994},null,"加班小时数",null,{"$f":"IFERROR(INDEX(Employees[加班小时数],Stub),\"\")","v":0}]
[null,null,"保险扣款",null,{"$f":"IFERROR(INDEX(Employees[保险扣款],Stub),\"\")","v":0},null,"其他常规扣款",null,{"$f":"IFERROR(INDEX(Employees[其他常规扣款],Stub),\"\")","v":100},null,"工资总额",null,{"$f":"IFERROR(INDEX(Employees[工资总额],Stub),\"\")","v":3200}]
[null,null,"总税款和",null,{"$f":"IFERROR(INDEX(Employees[税款和扣款],Stub),\"\")","v":1317.6000000000001},null,"其他扣款",null,{"$f":"IFERROR(INDEX(Employees[其他扣款],Stub),\"\")","v":0},null,"总税款和扣款 ",null,{"$f":"IFERROR(INDEX(Employees[税款和扣款],Stub)  +  INDEX(Employees[其他扣款],Stub),\"\")","v":1317.6000000000001}]
[null,null,"常规扣款 "]
[null,null,null,null,null,null,null,null,null,null,"净薪金",null,{"$f":"IFERROR(INDEX(Employees[净薪金],Stub),\"\")","v":1882.3999999999999}]
[]
[]
[null,null,{"$f":"CompanyName","v":"嘉元实业"}]
[null,null,"期间",{"$f":"PeriodEnding","v":43077},null,null,"名称",{"$f":"IFERROR(INDEX(Employees[员工姓名],Stub),\"\")","v":"史美萍"},null,null,"员工 ID",{"$f":"IFERROR(INDEX(Employees[ID],Stub),\"\")","v":1003}]
[null,null,"纳税状态",null,{"$f":"IFERROR(INDEX(Employees[纳税状态],Stub),\"\")","v":1},null,"联邦津贴（来自 W-4）",null,{"$f":"IFERROR(INDEX(Employees[联邦允许],Stub),\"\")","v":3},null,"工作时数",null,{"$f":"IFERROR(INDEX(Employees[工作的正常时数],Stub),\"\")","v":35}]
[null,null,"小时费率",null,{"$f":"IFERROR(INDEX(Employees[计时工资],Stub),\"\")","v":140},null,"加班费率",null,{"$f":"IFERROR(INDEX(Employees[加班费率],Stub),\"\")","v":0},null,"病假小时数",null,{"$f":"IFERROR(INDEX(Employees[病假小时数],Stub),\"\")","v":0}]
[null,null,"社会保障税",null,{"$f":"IFERROR(INDEX(Employees[社会保障税],Stub)  *  INDEX(Employees[工资总额],Stub),\"\")","v":335.16},null,"联邦所得税 ",null,{"$f":"IFERROR(INDEX(Employees[联邦所得税],Stub)  *  INDEX(Employees[工资总额],Stub),\"\")","v":1489.6000000000001},null,"假期小时数",null,{"$f":"IFERROR(INDEX(Employees[假期小时数],Stub),\"\")","v":3}]
[null,null,"医疗保险税 ",null,{"$f":"IFERROR(INDEX(Employees[医疗保险税],Stub)  *  INDEX(Employees[工资总额],Stub),\"\")","v":77.14},null,"州税 ",null,{"$f":"IFERROR(INDEX(Employees[州税],Stub)  *  INDEX(Employees[工资总额],Stub),\"\")","v":122.36},null,"加班小时数",null,{"$f":"IFERROR(INDEX(Employees[加班小时数],Stub),\"\")","v":0}]
[null,null,"保险扣款",null,{"$f":"IFERROR(INDEX(Employees[保险扣款],Stub),\"\")","v":180},null,"其他常规扣款",null,{"$f":"IFERROR(INDEX(Employees[其他常规扣款],Stub),\"\")","v":200},null,"工资总额",null,{"$f":"IFERROR(INDEX(Employees[工资总额],Stub),\"\")","v":5320}]
[null,null,"总税款和",null,{"$f":"IFERROR(INDEX(Employees[税款和扣款],Stub),\"\")","v":2404.2600000000002},null,"其他扣款",null,{"$f":"IFERROR(INDEX(Employees[其他扣款],Stub),\"\")","v":0},null,"总税款和扣款 ",null,{"$f":"IFERROR(INDEX(Employees[税款和扣款],Stub)  +  INDEX(Employees[其他扣款],Stub),\"\")","v":2404.2600000000002}]
[null,null,"常规扣款 "]
[null,null,null,null,null,null,null,null,null,null,"净薪金",null,{"$f":"IFERROR(INDEX(Employees[净薪金],Stub),\"\")","v":2915.74}]
[]
[]
[null,null,{"$f":"CompanyName","v":"嘉元实业"}]
[null,null,"期间",{"$f":"PeriodEnding","v":43077},null,null,"名称",{"$f":"IFERROR(INDEX(Employees[员工姓名],Stub),\"\")","v":"沙保国"},null,null,"员工 ID",{"$f":"IFERROR(INDEX(Employees[ID],Stub),\"\")","v":1008}]
[null,null,"纳税状态",null,{"$f":"IFERROR(INDEX(Employees[纳税状态],Stub),\"\")","v":1},null,"联邦津贴（来自 W-4）",null,{"$f":"IFERROR(INDEX(Employees[联邦允许],Stub),\"\")","v":0},null,"工作时数",null,{"$f":"IFERROR(INDEX(Employees[工作的正常时数],Stub),\"\")","v":50}]
[null,null,"小时费率",null,{"$f":"IFERROR(INDEX(Employees[计时工资],Stub),\"\")","v":200},null,"加班费率",null,{"$f":"IFERROR(INDEX(Employees[加班费率],Stub),\"\")","v":0},null,"病假小时数",null,{"$f":"IFERROR(INDEX(Employees[病假小时数],Stub),\"\")","v":1}]
[null,null,"社会保障税",null,{"$f":"IFERROR(INDEX(Employees[社会保障税],Stub)  *  INDEX(Employees[工资总额],Stub),\"\")","v":705.6},null,"联邦所得税 ",null,{"$f":"IFERROR(INDEX(Employees[联邦所得税],Stub)  *  INDEX(Employees[工资总额],Stub),\"\")","v":3136.0000000000005},null,"假期小时数",null,{"$f":"IFERROR(INDEX(Employees[假期小时数],Stub),\"\")","v":5}]
[null,null,"医疗保险税 ",null,{"$f":"IFERROR(INDEX(Employees[医疗保险税],Stub)  *  INDEX(Employees[工资总额],Stub),\"\")","v":162.4},null,"州税 ",null,{"$f":"IFERROR(INDEX(Employees[州税],Stub)  *  INDEX(Employees[工资总额],Stub),\"\")","v":257.60000000000002},null,"加班小时数",null,{"$f":"IFERROR(INDEX(Employees[加班小时数],Stub),\"\")","v":0}]
[null,null,"保险扣款",null,{"$f":"IFERROR(INDEX(Employees[保险扣款],Stub),\"\")","v":150},null,"其他常规扣款",null,{"$f":"IFERROR(INDEX(Employees[其他常规扣款],Stub),\"\")","v":0},null,"工资总额",null,{"$f":"IFERROR(INDEX(Employees[工资总额],Stub),\"\")","v":11200}]
[null,null,"总税款和",null,{"$f":"IFERROR(INDEX(Employees[税款和扣款],Stub),\"\")","v":4411.6000000000004},null,"其他扣款",null,{"$f":"IFERROR(INDEX(Employees[其他扣款],Stub),\"\")","v":0},null,"总税款和扣款 ",null,{"$f":"IFERROR(INDEX(Employees[税款和扣款],Stub)  +  INDEX(Employees[其他扣款],Stub),\"\")","v":4411.6000000000004}]
[null,null,"常规扣款 "]
[null,null,null,null,null,null,null,null,null,null,"净薪金",null,{"$f":"IFERROR(INDEX(Employees[净薪金],Stub),\"\")","v":6788.4}]